[Event "Titled Tuesday Blitz May 16 Late 2023"]
[White "Amburgy, Ryan"]
[Black "Sanchez Enriquez, Oscar Gerardo"]
[WhiteFideId "30924820"]
[BlackFideId "5106311"]
[WhiteElo "2134"]
[BlackElo "2387"]
[Result "0-1"]
[Round "04"]
[TimeControl "180+2"]
[Date "2023.05.16"]
[WhiteClock "0:00:19"]
[BlackClock "0:00:39"]

1. d4 {[%clk 0:03:00]}  e6 {[%clk 0:02:52]} 2. c4 {[%clk 0:03:00]}  b6 {[%clk 0:02:52]} 3. Nc3 {[%clk 0:02:58]}  Bb4 {[%clk 0:02:51]} 4. Qb3 {[%clk 0:02:56]}  a5 {[%clk 0:02:48]} 5. a3 {[%clk 0:02:56]}  Bxc3+ {[%clk 0:02:48]} 6. Qxc3 {[%clk 0:02:57]}  Bb7 {[%clk 0:02:49]} 7. Nf3 {[%clk 0:02:56]}  d6 {[%clk 0:02:47]} 8. Bg5 {[%clk 0:02:55]}  Qd7 {[%clk 0:02:39]} 9. g3 {[%clk 0:02:49]}  h6 {[%clk 0:02:38]} 10. Bd2 {[%clk 0:02:49]}  Nf6 {[%clk 0:02:38]} 11. Bg2 {[%clk 0:02:49]}  Ne4 {[%clk 0:02:38]} 12. Qc2 {[%clk 0:02:50]}  f5 {[%clk 0:02:38]} 13. O-O {[%clk 0:02:49]}  O-O {[%clk 0:02:38]} 14. Rfd1 {[%clk 0:02:46]}  Nc6 {[%clk 0:02:37]} 15. Bc3 {[%clk 0:02:46]}  Ne7 {[%clk 0:02:30]} 16. Nd2 {[%clk 0:02:30]}  Nxc3 {[%clk 0:02:29]} 17. Qxc3 {[%clk 0:02:31]}  Bxg2 {[%clk 0:02:29]} 18. Kxg2 {[%clk 0:02:32]}  f4 {[%clk 0:02:26]} 19. e4 {[%clk 0:02:22]}  fxe3 {[%clk 0:02:22]} 20. Qxe3 {[%clk 0:02:21]}  Nf5 {[%clk 0:02:22]} 21. Qe4 {[%clk 0:02:21]}  d5 {[%clk 0:02:19]} 22. cxd5 {[%clk 0:02:22]}  exd5 {[%clk 0:02:18]} 23. Qd3 {[%clk 0:02:22]}  Rae8 {[%clk 0:02:07]} 24. Re1 {[%clk 0:02:22]}  Qf7 {[%clk 0:02:03]} 25. Nf3 {[%clk 0:02:12]}  Qg6 {[%clk 0:02:02]} 26. Qd2 {[%clk 0:01:57]}  Re4 {[%clk 0:01:55]} 27. Rxe4 {[%clk 0:01:46]}  dxe4 {[%clk 0:01:55]} 28. Ne5 {[%clk 0:01:47]}  Qe6 {[%clk 0:01:49]} 29. Qc3 {[%clk 0:01:39]}  Qd5 {[%clk 0:01:43]} 30. Qc4 {[%clk 0:01:30]}  Qxc4 {[%clk 0:01:42]} 31. Nxc4 {[%clk 0:01:31]}  Nxd4 {[%clk 0:01:42]} 32. Nd2 {[%clk 0:01:30]}  e3 {[%clk 0:01:36]} 33. fxe3 {[%clk 0:01:29]}  Nc2 {[%clk 0:01:36]} 34. Rc1 {[%clk 0:01:27]}  Nxe3+ {[%clk 0:01:36]} 35. Kg1 {[%clk 0:01:28]}  c5 {[%clk 0:01:32]} 36. Nc4 {[%clk 0:01:28]}  Nxc4 {[%clk 0:01:28]} 37. Rxc4 {[%clk 0:01:29]}  Rd8 {[%clk 0:01:27]} 38. Rc2 {[%clk 0:01:24]}  Rd4 {[%clk 0:01:22]} 39. Kf2 {[%clk 0:01:21]}  Kf7 {[%clk 0:01:22]} 40. Ke3 {[%clk 0:01:21]}  Ke6 {[%clk 0:01:23]} 41. Rf2 {[%clk 0:01:21]}  Kd5 {[%clk 0:01:14]} 42. Rc2 {[%clk 0:01:15]}  b5 {[%clk 0:01:09]} 43. Rc1 {[%clk 0:01:07]}  c4 {[%clk 0:01:04]} 44. Rc3 {[%clk 0:00:49]}  b4 {[%clk 0:01:03]} 45. axb4 {[%clk 0:00:49]}  axb4 {[%clk 0:01:04]} 46. Rc2 {[%clk 0:00:49]}  Rd3+ {[%clk 0:01:05]} 47. Ke2 {[%clk 0:00:50]}  Kd4 {[%clk 0:01:02]} 48. Kf2 {[%clk 0:00:47]}  b3 {[%clk 0:00:50]} 49. Re2 {[%clk 0:00:47]}  c3 {[%clk 0:00:51]} 50. bxc3+ {[%clk 0:00:40]}  Kxc3 {[%clk 0:00:52]} 51. Re7 {[%clk 0:00:41]}  b2 {[%clk 0:00:49]} 52. Ke2 {[%clk 0:00:36]}  Rd2+ {[%clk 0:00:46]} 53. Ke3 {[%clk 0:00:36]}  Rxh2 {[%clk 0:00:46]} 54. Rc7+ {[%clk 0:00:36]}  Kb3 {[%clk 0:00:47]} 55. Rb7+ {[%clk 0:00:36]}  Kc2 {[%clk 0:00:47]} 56. Rc7+ {[%clk 0:00:36]}  Kd1 {[%clk 0:00:45]} 57. Rf7 {[%clk 0:00:21]}  Re2+ {[%clk 0:00:41]} 58. Kd4 {[%clk 0:00:19]}  b1=Q {[%clk 0:00:39]} 0-1


[Site "https://www.chess.com"]

[Event "Titled Tuesday Blitz May 16 Late 2023"]
[White "Gritsenko, Nikolai"]
[Black "Fan_Of_Chucky"]
[WhiteFideId "14112493"]
[WhiteElo "2389"]
[BlackElo "2447"]
[Result "1-0"]
[Round "04"]
[TimeControl "180+2"]
[Date "2023.05.16"]
[WhiteClock "0:00:19"]
[BlackClock "0:00:08"]

1. d4 {[%clk 0:03:00]}  Nf6 {[%clk 0:02:57]} 2. Bg5 {[%clk 0:03:00]}  Ne4 {[%clk 0:02:57]} 3. h4 {[%clk 0:02:59]}  d5 {[%clk 0:02:53]} 4. Nd2 {[%clk 0:02:58]}  h6 {[%clk 0:02:46]} 5. Nxe4 {[%clk 0:02:53]}  dxe4 {[%clk 0:02:47]} 6. Bf4 {[%clk 0:02:53]}  Bf5 {[%clk 0:02:35]} 7. e3 {[%clk 0:02:51]}  e6 {[%clk 0:02:31]} 8. g4 {[%clk 0:02:43]}  Bh7 {[%clk 0:02:29]} 9. Ne2 {[%clk 0:02:42]}  Bd6 {[%clk 0:02:21]} 10. Bg2 {[%clk 0:02:35]}  c6 {[%clk 0:02:21]} 11. Qd2 {[%clk 0:02:29]}  Qc7 {[%clk 0:02:09]} 12. Bxd6 {[%clk 0:02:08]}  Qxd6 {[%clk 0:02:08]} 13. Ng3 {[%clk 0:02:08]}  f5 {[%clk 0:01:46]} 14. gxf5 {[%clk 0:02:04]}  exf5 {[%clk 0:01:47]} 15. h5 {[%clk 0:02:04]}  Nd7 {[%clk 0:01:42]} 16. Bh3 {[%clk 0:01:43]}  O-O {[%clk 0:01:41]} 17. Ne2 {[%clk 0:01:41]}  Nf6 {[%clk 0:01:36]} 18. Nf4 {[%clk 0:01:40]}  Nd5 {[%clk 0:01:34]} 19. O-O-O {[%clk 0:01:12]}  Nxf4 {[%clk 0:01:31]} 20. exf4 {[%clk 0:01:12]}  Rad8 {[%clk 0:01:23]} 21. Rhg1 {[%clk 0:01:07]}  Rd7 {[%clk 0:00:49]} 22. c3 {[%clk 0:00:57]}  Rfd8 {[%clk 0:00:48]} 23. Qe3 {[%clk 0:00:56]}  Qd5 {[%clk 0:00:39]} 24. b3 {[%clk 0:00:50]}  Qa5 {[%clk 0:00:35]} 25. Kb2 {[%clk 0:00:45]}  c5 {[%clk 0:00:26]} 26. Bf1 {[%clk 0:00:45]}  cxd4 {[%clk 0:00:22]} 27. Bc4+ {[%clk 0:00:43]}  Kh8 {[%clk 0:00:22]} 28. cxd4 {[%clk 0:00:43]}  Qb6 {[%clk 0:00:18]} 29. d5 {[%clk 0:00:39]}  Qxe3 {[%clk 0:00:12]} 30. fxe3 {[%clk 0:00:39]}  b5 {[%clk 0:00:13]} 31. Bxb5 {[%clk 0:00:39]}  Rxd5 {[%clk 0:00:13]} 32. Rxd5 {[%clk 0:00:34]}  Rxd5 {[%clk 0:00:14]} 33. Bc4 {[%clk 0:00:34]}  Rd2+ {[%clk 0:00:13]} 34. Kc3 {[%clk 0:00:35]}  Rxa2 {[%clk 0:00:13]} 35. Rd1 {[%clk 0:00:35]}  g6 {[%clk 0:00:14]} 36. Rd8+ {[%clk 0:00:34]}  Kg7 {[%clk 0:00:13]} 37. Rd7+ {[%clk 0:00:34]}  Kh8 {[%clk 0:00:13]} 38. Rd8+ {[%clk 0:00:26]}  Kg7 {[%clk 0:00:13]} 39. Rd7+ {[%clk 0:00:25]}  Kh8 {[%clk 0:00:14]} 40. hxg6 {[%clk 0:00:25]}  Bxg6 {[%clk 0:00:14]} 41. Rc7 {[%clk 0:00:25]}  h5 {[%clk 0:00:13]} 42. Kd4 {[%clk 0:00:25]}  Ra5 {[%clk 0:00:12]} 43. b4 {[%clk 0:00:23]}  Ra3 {[%clk 0:00:09]} 44. Ke5 {[%clk 0:00:22]}  Rc3 {[%clk 0:00:06]} 45. Kf6 {[%clk 0:00:21]}  Be8 {[%clk 0:00:06]} 46. Rc8 {[%clk 0:00:18]}  Kh7 {[%clk 0:00:05]} 47. Bg8+ {[%clk 0:00:17]}  Kxg8 {[%clk 0:00:06]} 48. Rxc3 {[%clk 0:00:17]}  h4 {[%clk 0:00:05]} 49. Rc2 {[%clk 0:00:17]}  Bd7 {[%clk 0:00:04]} 50. Rh2 {[%clk 0:00:17]}  Kf8 {[%clk 0:00:04]} 51. Rxh4 {[%clk 0:00:17]}  Kg8 {[%clk 0:00:04]} 52. Rh5 {[%clk 0:00:17]}  Bc8 {[%clk 0:00:04]} 53. Rxf5 {[%clk 0:00:17]}  Bxf5 {[%clk 0:00:05]} 54. Kxf5 {[%clk 0:00:17]}  Kf7 {[%clk 0:00:06]} 55. Kxe4 {[%clk 0:00:18]}  Ke7 {[%clk 0:00:07]} 56. f5 {[%clk 0:00:18]}  Kf7 {[%clk 0:00:08]} 57. Ke5 {[%clk 0:00:19]}  Ke7 {[%clk 0:00:09]} 58. e4 {[%clk 0:00:19]}  Kf7 {[%clk 0:00:09]} 59. f6 {[%clk 0:00:19]}  a5 {[%clk 0:00:08]} 60. bxa5 {[%clk 0:00:19]} 1-0


[Site "https://www.chess.com"]

[Event "Titled Tuesday Blitz May 16 Late 2023"]
[White "Kaplan, Avi Harrison"]
[Black "Rosen, Eric"]
[WhiteFideId "30934559"]
[BlackFideId "2032562"]
[WhiteElo "1983"]
[BlackElo "2331"]
[Result "1-0"]
[Round "04"]
[TimeControl "180+2"]
[Date "2023.05.16"]
[WhiteClock "0:00:14"]
[BlackClock "0:00:02"]

1. a3 {[%clk 0:03:00]}  d5 {[%clk 0:02:59]} 2. Nf3 {[%clk 0:02:59]}  Bf5 {[%clk 0:02:56]} 3. b4 {[%clk 0:02:58]}  e6 {[%clk 0:02:55]} 4. Bb2 {[%clk 0:02:58]}  Nf6 {[%clk 0:02:56]} 5. e3 {[%clk 0:02:59]}  c5 {[%clk 0:02:54]} 6. bxc5 {[%clk 0:02:58]}  Bxc5 {[%clk 0:02:55]} 7. Be2 {[%clk 0:02:58]}  Nbd7 {[%clk 0:02:45]} 8. O-O {[%clk 0:02:57]}  Qb6 {[%clk 0:02:44]} 9. Qc1 {[%clk 0:02:46]}  Rc8 {[%clk 0:02:44]} 10. d3 {[%clk 0:02:46]}  O-O {[%clk 0:02:42]} 11. h3 {[%clk 0:02:44]}  h6 {[%clk 0:02:42]} 12. Nbd2 {[%clk 0:02:43]}  a5 {[%clk 0:02:37]} 13. Rb1 {[%clk 0:02:41]}  Qa7 {[%clk 0:02:35]} 14. Bd4 {[%clk 0:02:38]}  Rc7 {[%clk 0:02:30]} 15. Nb3 {[%clk 0:02:35]}  b6 {[%clk 0:02:10]} 16. Nxc5 {[%clk 0:02:22]}  bxc5 {[%clk 0:02:11]} 17. Bc3 {[%clk 0:02:23]}  Rfc8 {[%clk 0:02:05]} 18. Qd2 {[%clk 0:02:20]}  a4 {[%clk 0:01:58]} 19. Rb5 {[%clk 0:02:11]}  c4 {[%clk 0:01:35]} 20. Bd4 {[%clk 0:01:47]}  Qa6 {[%clk 0:01:35]} 21. Rfb1 {[%clk 0:01:40]}  cxd3 {[%clk 0:01:30]} 22. Bxd3 {[%clk 0:01:41]}  Ne4 {[%clk 0:01:23]} 23. Qb4 {[%clk 0:01:36]}  Qc6 {[%clk 0:00:43]} 24. Rb7 {[%clk 0:00:46]}  Ndc5 {[%clk 0:00:34]} 25. Rxc7 {[%clk 0:00:44]}  Qxc7 {[%clk 0:00:34]} 26. Bxc5 {[%clk 0:00:34]}  Qxc5 {[%clk 0:00:34]} 27. Qxc5 {[%clk 0:00:34]}  Rxc5 {[%clk 0:00:31]} 28. Rb8+ {[%clk 0:00:34]}  Kh7 {[%clk 0:00:31]} 29. Ra8 {[%clk 0:00:35]}  Nc3 {[%clk 0:00:15]} 30. Bxf5+ {[%clk 0:00:34]}  exf5 {[%clk 0:00:16]} 31. Nd4 {[%clk 0:00:35]}  Kg6 {[%clk 0:00:15]} 32. Ra6+ {[%clk 0:00:33]}  f6 {[%clk 0:00:15]} 33. Ra7 {[%clk 0:00:31]}  Nb5 {[%clk 0:00:10]} 34. Ra5 {[%clk 0:00:22]}  Rc3 {[%clk 0:00:02]} 35. Nxb5 {[%clk 0:00:19]}  Rxc2 {[%clk 0:00:03]} 36. Rxa4 {[%clk 0:00:19]}  Rc1+ {[%clk 0:00:02]} 37. Kh2 {[%clk 0:00:20]}  Rc2 {[%clk 0:00:02]} 38. Rf4 {[%clk 0:00:19]}  Kf7 {[%clk 0:00:01]} 39. Rxf5 {[%clk 0:00:19]}  Rb2 {[%clk 0:00:01]} 40. Nd4 {[%clk 0:00:16]}  Ra2 {[%clk 0:00:01]} 41. Rxd5 {[%clk 0:00:16]}  Rxa3 {[%clk 0:00:01]} 42. Rd7+ {[%clk 0:00:15]}  Kg6 {[%clk 0:00:01]} 43. Ne6 {[%clk 0:00:16]}  Ra2 {[%clk 0:00:01]} 44. Rxg7+ {[%clk 0:00:14]}  Kf5 {[%clk 0:00:02]} 45. Nd4+ {[%clk 0:00:14]}  Ke4 {[%clk 0:00:02]} 46. Kg3 {[%clk 0:00:13]}  Kd5 {[%clk 0:00:01]} 47. Rg6 {[%clk 0:00:13]}  Ke5 {[%clk 0:00:02]} 48. Rxh6 {[%clk 0:00:13]}  Ke4 {[%clk 0:00:02]} 49. Rxf6 {[%clk 0:00:12]}  Ra8 {[%clk 0:00:03]} 50. Rf4+ {[%clk 0:00:12]}  Kd3 {[%clk 0:00:03]} 51. Kf3 {[%clk 0:00:13]}  Kd2 {[%clk 0:00:03]} 52. Nf5 {[%clk 0:00:13]}  Rh8 {[%clk 0:00:04]} 53. h4 {[%clk 0:00:11]}  Ke1 {[%clk 0:00:04]} 54. g3 {[%clk 0:00:12]}  Ra8 {[%clk 0:00:04]} 55. Rd4 {[%clk 0:00:12]}  Ra2 {[%clk 0:00:04]} 56. g4 {[%clk 0:00:10]}  Rxf2+ {[%clk 0:00:03]} 57. Kg3 {[%clk 0:00:10]}  Rf1 {[%clk 0:00:03]} 58. h5 {[%clk 0:00:09]}  Rg1+ {[%clk 0:00:03]} 59. Kh4 {[%clk 0:00:10]}  Rh1+ {[%clk 0:00:03]} 60. Kg5 {[%clk 0:00:11]}  Kf2 {[%clk 0:00:03]} 61. h6 {[%clk 0:00:10]}  Kf3 {[%clk 0:00:03]} 62. Rf4+ {[%clk 0:00:09]}  Ke2 {[%clk 0:00:03]} 63. Kg6 {[%clk 0:00:09]}  Kd3 {[%clk 0:00:03]} 64. h7 {[%clk 0:00:10]}  Kc2 {[%clk 0:00:03]} 65. Kg7 {[%clk 0:00:10]}  Kb2 {[%clk 0:00:03]} 66. h8=Q {[%clk 0:00:11]}  Rc1 {[%clk 0:00:03]} 67. Qd8 {[%clk 0:00:11]}  Rc2 {[%clk 0:00:03]} 68. Qd3 {[%clk 0:00:12]}  Kb1 {[%clk 0:00:04]} 69. Qxc2+ {[%clk 0:00:12]}  Ka1 {[%clk 0:00:04]} 70. Qf2 {[%clk 0:00:13]}  Kb1 {[%clk 0:00:04]} 71. Kf6 {[%clk 0:00:13]}  Ka1 {[%clk 0:00:02]} 72. Ke5 {[%clk 0:00:14]} 1-0


[Site "https://www.chess.com"]

[Event "Titled Tuesday Blitz May 16 Late 2023"]
[White "Maltsevskaya, Aleksandra"]
[Black "BenchGM"]
[WhiteFideId "24174041"]
[WhiteElo "2302"]
[BlackElo "2428"]
[Result "1-0"]
[Round "04"]
[TimeControl "180+2"]
[Date "2023.05.16"]
[WhiteClock "0:00:06"]
[BlackClock "0:00:02"]

1. e4 {[%clk 0:03:00]}  c5 {[%clk 0:02:59]} 2. Nc3 {[%clk 0:03:01]}  a6 {[%clk 0:02:59]} 3. g3 {[%clk 0:03:01]}  b5 {[%clk 0:02:59]} 4. Bg2 {[%clk 0:03:02]}  Bb7 {[%clk 0:02:59]} 5. f4 {[%clk 0:03:02]}  e6 {[%clk 0:02:58]} 6. d3 {[%clk 0:03:02]}  d5 {[%clk 0:02:53]} 7. exd5 {[%clk 0:03:02]}  Nf6 {[%clk 0:02:53]} 8. Nf3 {[%clk 0:03:02]}  exd5 {[%clk 0:02:52]} 9. O-O {[%clk 0:03:03]}  Be7 {[%clk 0:02:51]} 10. d4 {[%clk 0:02:51]}  O-O {[%clk 0:02:48]} 11. a4 {[%clk 0:02:51]}  b4 {[%clk 0:02:34]} 12. Nb1 {[%clk 0:02:50]}  Nc6 {[%clk 0:02:34]} 13. Nbd2 {[%clk 0:02:46]}  Qb6 {[%clk 0:02:22]} 14. Nb3 {[%clk 0:02:38]}  c4 {[%clk 0:02:18]} 15. Nbd2 {[%clk 0:02:19]}  Nxd4 {[%clk 0:02:17]} 16. Kh1 {[%clk 0:02:19]}  Ng4 {[%clk 0:02:07]} 17. Nxd4 {[%clk 0:02:18]}  Qxd4 {[%clk 0:02:05]} 18. Qxg4 {[%clk 0:02:18]}  c3 {[%clk 0:01:55]} 19. bxc3 {[%clk 0:02:16]}  Qxc3 {[%clk 0:01:55]} 20. Nb3 {[%clk 0:02:00]}  Qxc2 {[%clk 0:01:45]} 21. Nd4 {[%clk 0:01:59]}  Qc3 {[%clk 0:01:35]} 22. Nf5 {[%clk 0:01:59]}  Qxa1 {[%clk 0:01:33]} 23. Nxe7+ {[%clk 0:01:57]}  Kh8 {[%clk 0:01:31]} 24. Nf5 {[%clk 0:01:30]}  Bc8 {[%clk 0:01:07]} 25. Qg5 {[%clk 0:01:20]}  Bxf5 {[%clk 0:00:47]} 26. Qxf5 {[%clk 0:01:19]}  Rac8 {[%clk 0:00:47]} 27. Be3 {[%clk 0:01:11]}  Qc3 {[%clk 0:00:47]} 28. Bg1 {[%clk 0:00:59]}  Rcd8 {[%clk 0:00:43]} 29. Rd1 {[%clk 0:00:55]}  d4 {[%clk 0:00:30]} 30. Be4 {[%clk 0:00:53]}  g6 {[%clk 0:00:30]} 31. Qf6+ {[%clk 0:00:52]}  Kg8 {[%clk 0:00:30]} 32. Bxd4 {[%clk 0:00:49]}  Rxd4 {[%clk 0:00:30]} 33. Qxd4 {[%clk 0:00:50]}  Qb3 {[%clk 0:00:27]} 34. Bd5 {[%clk 0:00:49]}  Qxa4 {[%clk 0:00:24]} 35. h4 {[%clk 0:00:49]}  Qc2 {[%clk 0:00:20]} 36. h5 {[%clk 0:00:48]}  Qf5 {[%clk 0:00:18]} 37. Kg2 {[%clk 0:00:29]}  Qxh5 {[%clk 0:00:18]} 38. Rh1 {[%clk 0:00:23]}  Qe2+ {[%clk 0:00:17]} 39. Qf2 {[%clk 0:00:19]}  Qd3 {[%clk 0:00:17]} 40. Bf3 {[%clk 0:00:15]}  Re8 {[%clk 0:00:17]} 41. Rd1 {[%clk 0:00:15]}  Qc3 {[%clk 0:00:15]} 42. Qd4 {[%clk 0:00:09]}  Qc2+ {[%clk 0:00:14]} 43. Rd2 {[%clk 0:00:09]}  Qf5 {[%clk 0:00:14]} 44. Bd5 {[%clk 0:00:06]}  b3 {[%clk 0:00:10]} 45. Bxb3 {[%clk 0:00:06]}  Qb5 {[%clk 0:00:07]} 46. Qd5 {[%clk 0:00:06]}  Re2+ {[%clk 0:00:07]} 47. Kh3 {[%clk 0:00:03]}  Qxd5 {[%clk 0:00:03]} 48. Rxd5 {[%clk 0:00:04]}  Re3 {[%clk 0:00:04]} 49. Rd8+ {[%clk 0:00:04]}  Kg7 {[%clk 0:00:03]} 50. Bc4 {[%clk 0:00:05]}  Re7 {[%clk 0:00:01]} 51. Bxa6 {[%clk 0:00:05]}  h6 {[%clk 0:00:02]} 52. Bc4 {[%clk 0:00:05]}  g5 {[%clk 0:00:02]} 53. fxg5 {[%clk 0:00:04]}  hxg5 {[%clk 0:00:03]} 54. Rd5 {[%clk 0:00:04]}  Kg6 {[%clk 0:00:03]} 55. Rd6+ {[%clk 0:00:04]}  f6 {[%clk 0:00:03]} 56. Bd3+ {[%clk 0:00:05]}  Kh6 {[%clk 0:00:03]} 57. Rxf6+ {[%clk 0:00:04]}  Kg7 {[%clk 0:00:03]} 58. Rg6+ {[%clk 0:00:04]}  Kf7 {[%clk 0:00:03]} 59. Rxg5 {[%clk 0:00:05]}  Re3 {[%clk 0:00:03]} 60. Bc4+ {[%clk 0:00:05]}  Kf6 {[%clk 0:00:02]} 61. Rg4 {[%clk 0:00:06]}  Re4 {[%clk 0:00:02]} 62. Rxe4 {[%clk 0:00:06]}  Kf5 {[%clk 0:00:03]} 63. Rf4+ {[%clk 0:00:06]}  Ke5 {[%clk 0:00:02]} 64. Kg4 {[%clk 0:00:06]} 1-0


[Site "https://www.chess.com"]

[Event "Titled Tuesday Blitz May 16 Late 2023"]
[White "QuiesPrecatio"]
[Black "Mendez Fortes, Eduardo Jesus"]
[BlackFideId "3502376"]
[WhiteElo "2395"]
[BlackElo "2307"]
[Result "0-1"]
[Round "04"]
[TimeControl "180+2"]
[Date "2023.05.16"]
[WhiteClock "0:00:01"]
[BlackClock "0:00:32"]

1. Nf3 {[%clk 0:03:00]}  d5 {[%clk 0:02:59]} 2. d4 {[%clk 0:02:59]}  Nf6 {[%clk 0:02:59]} 3. c4 {[%clk 0:02:58]}  e6 {[%clk 0:02:59]} 4. Nc3 {[%clk 0:02:58]}  Bb4 {[%clk 0:02:59]} 5. cxd5 {[%clk 0:02:58]}  exd5 {[%clk 0:03:00]} 6. Bg5 {[%clk 0:02:58]}  h6 {[%clk 0:02:59]} 7. Bh4 {[%clk 0:02:58]}  O-O {[%clk 0:03:00]} 8. Qc2 {[%clk 0:02:58]}  g5 {[%clk 0:02:50]} 9. Bg3 {[%clk 0:02:58]}  Ne4 {[%clk 0:02:51]} 10. Nd2 {[%clk 0:02:55]}  Bf5 {[%clk 0:02:45]} 11. Ndxe4 {[%clk 0:02:51]}  Bxe4 {[%clk 0:02:43]} 12. Qd2 {[%clk 0:02:40]}  Nc6 {[%clk 0:02:40]} 13. h4 {[%clk 0:02:07]}  Qf6 {[%clk 0:02:39]} 14. e3 {[%clk 0:01:50]}  Rfe8 {[%clk 0:02:34]} 15. O-O-O {[%clk 0:01:44]}  g4 {[%clk 0:02:33]} 16. h5 {[%clk 0:01:38]}  Na5 {[%clk 0:02:26]} 17. Rh4 {[%clk 0:01:17]}  Qe6 {[%clk 0:02:00]} 18. Be2 {[%clk 0:00:51]}  Bf5 {[%clk 0:02:00]} 19. Bd3 {[%clk 0:00:48]}  Be7 {[%clk 0:01:55]} 20. Rhh1 {[%clk 0:00:47]}  Nc4 {[%clk 0:01:53]} 21. Qc2 {[%clk 0:00:47]}  Bxd3 {[%clk 0:01:52]} 22. Rxd3 {[%clk 0:00:47]}  c6 {[%clk 0:01:45]} 23. Kb1 {[%clk 0:00:47]}  b5 {[%clk 0:01:45]} 24. Ka1 {[%clk 0:00:44]}  a5 {[%clk 0:01:45]} 25. Ne2 {[%clk 0:00:42]}  a4 {[%clk 0:01:42]} 26. Nf4 {[%clk 0:00:42]}  Qf5 {[%clk 0:01:42]} 27. Rc3 {[%clk 0:00:37]}  Qxc2 {[%clk 0:01:41]} 28. Rxc2 {[%clk 0:00:38]}  b4 {[%clk 0:01:38]} 29. Rcc1 {[%clk 0:00:35]}  b3 {[%clk 0:01:38]} 30. a3 {[%clk 0:00:35]}  Bxa3 {[%clk 0:01:18]} 31. Rxc4 {[%clk 0:00:35]}  Bxb2+ {[%clk 0:01:19]} 32. Kxb2 {[%clk 0:00:35]}  dxc4 {[%clk 0:01:20]} 33. Ra1 {[%clk 0:00:32]}  c5 {[%clk 0:01:06]} 34. d5 {[%clk 0:00:22]}  Reb8 {[%clk 0:00:57]} 35. Ne2 {[%clk 0:00:11]}  a3+ {[%clk 0:00:57]} 36. Rxa3 {[%clk 0:00:01]}  Rxa3 {[%clk 0:00:57]} 37. Kxa3 {[%clk 0:00:02]}  b2 {[%clk 0:00:58]} 38. Nc3 {[%clk 0:00:03]}  b1=Q {[%clk 0:00:49]} 39. Nxb1 {[%clk 0:00:03]}  Rxb1 {[%clk 0:00:50]} 40. Be5 {[%clk 0:00:04]}  Rb3+ {[%clk 0:00:45]} 41. Ka4 {[%clk 0:00:02]}  Rb7 {[%clk 0:00:38]} 42. d6 {[%clk 0:00:01]}  f5 {[%clk 0:00:37]} 43. f3 {[%clk 0:00:01]}  gxf3 {[%clk 0:00:37]} 44. gxf3 {[%clk 0:00:02]}  Kf7 {[%clk 0:00:37]} 45. e4 {[%clk 0:00:03]}  Ke6 {[%clk 0:00:35]} 46. Bf4 {[%clk 0:00:03]}  c3 {[%clk 0:00:34]} 47. e5 {[%clk 0:00:01]}  c2 {[%clk 0:00:33]} 48. Ka3 {[%clk 0:00:01]}  Rb1 {[%clk 0:00:32]} 49. Ka2 {[%clk 0:00:01]}  c1=Q {[%clk 0:00:32]} 0-1


[Site "https://www.chess.com"]

[Event "Titled Tuesday Blitz May 16 Late 2023"]
[White "Kourkoulos-Arditis, Stamatis"]
[Black "Kielinkei"]
[WhiteFideId "4221990"]
[WhiteElo "2400"]
[BlackElo "2430"]
[Result "1-0"]
[Round "04"]
[TimeControl "180+2"]
[Date "2023.05.16"]
[WhiteClock "0:00:27"]
[BlackClock "0:00:06"]

1. e4 {[%clk 0:03:00]}  c5 {[%clk 0:03:00]} 2. Nf3 {[%clk 0:02:56]}  d6 {[%clk 0:03:00]} 3. d4 {[%clk 0:02:56]}  cxd4 {[%clk 0:03:01]} 4. Nxd4 {[%clk 0:02:57]}  Nf6 {[%clk 0:03:01]} 5. Nc3 {[%clk 0:02:57]}  Nc6 {[%clk 0:03:01]} 6. Be2 {[%clk 0:02:55]}  e5 {[%clk 0:02:59]} 7. Nf3 {[%clk 0:02:55]}  Be7 {[%clk 0:02:57]} 8. O-O {[%clk 0:02:54]}  O-O {[%clk 0:02:57]} 9. Bg5 {[%clk 0:02:53]}  h6 {[%clk 0:02:51]} 10. Bxf6 {[%clk 0:02:53]}  Bxf6 {[%clk 0:02:50]} 11. Nd5 {[%clk 0:02:53]}  Be6 {[%clk 0:02:35]} 12. c3 {[%clk 0:02:48]}  Bg5 {[%clk 0:02:23]} 13. Qb3 {[%clk 0:02:03]}  Qd7 {[%clk 0:02:07]} 14. Rad1 {[%clk 0:01:58]}  Ne7 {[%clk 0:02:02]} 15. Bc4 {[%clk 0:01:52]}  Nxd5 {[%clk 0:01:36]} 16. Bxd5 {[%clk 0:01:49]}  Bxd5 {[%clk 0:01:35]} 17. Rxd5 {[%clk 0:01:43]}  Qc7 {[%clk 0:01:26]} 18. Rfd1 {[%clk 0:01:42]}  Be7 {[%clk 0:01:24]} 19. a4 {[%clk 0:01:22]}  Kh8 {[%clk 0:01:20]} 20. Qc2 {[%clk 0:01:20]}  Qc8 {[%clk 0:01:16]} 21. Nd2 {[%clk 0:01:17]}  Qe6 {[%clk 0:01:05]} 22. Nc4 {[%clk 0:01:15]}  Rad8 {[%clk 0:00:58]} 23. Qd3 {[%clk 0:01:15]}  g6 {[%clk 0:00:54]} 24. Nxd6 {[%clk 0:01:11]}  f5 {[%clk 0:00:30]} 25. Nc4 {[%clk 0:00:58]}  fxe4 {[%clk 0:00:22]} 26. Qxe4 {[%clk 0:00:59]}  Rxd5 {[%clk 0:00:15]} 27. Qxd5 {[%clk 0:01:00]}  Qxd5 {[%clk 0:00:10]} 28. Rxd5 {[%clk 0:01:01]}  Bf6 {[%clk 0:00:09]} 29. Nd6 {[%clk 0:00:54]}  b6 {[%clk 0:00:07]} 30. Ne4 {[%clk 0:00:51]}  Bg7 {[%clk 0:00:06]} 31. g3 {[%clk 0:00:49]}  Rc8 {[%clk 0:00:05]} 32. a5 {[%clk 0:00:39]}  bxa5 {[%clk 0:00:04]} 33. Rxa5 {[%clk 0:00:39]}  Rc7 {[%clk 0:00:05]} 34. Kg2 {[%clk 0:00:38]}  Kg8 {[%clk 0:00:05]} 35. Ra6 {[%clk 0:00:37]}  g5 {[%clk 0:00:03]} 36. Kf3 {[%clk 0:00:37]}  Kf8 {[%clk 0:00:02]} 37. Kg4 {[%clk 0:00:37]}  Ke7 {[%clk 0:00:02]} 38. Kf5 {[%clk 0:00:37]}  Kf7 {[%clk 0:00:01]} 39. f3 {[%clk 0:00:34]}  Ke7 {[%clk 0:00:01]} 40. Kg6 {[%clk 0:00:34]}  Bf8 {[%clk 0:00:01]} 41. b4 {[%clk 0:00:25]}  Rb7 {[%clk 0:00:02]} 42. Nc5 {[%clk 0:00:25]}  Rc7 {[%clk 0:00:01]} 43. Re6+ {[%clk 0:00:24]}  Kd8 {[%clk 0:00:02]} 44. Rxe5 {[%clk 0:00:24]}  Rc6+ {[%clk 0:00:01]} 45. Re6 {[%clk 0:00:23]}  Rxe6+ {[%clk 0:00:01]} 46. Nxe6+ {[%clk 0:00:23]}  Ke7 {[%clk 0:00:02]} 47. Nxf8 {[%clk 0:00:24]}  Kxf8 {[%clk 0:00:02]} 48. Kxh6 {[%clk 0:00:24]}  Ke7 {[%clk 0:00:02]} 49. Kxg5 {[%clk 0:00:25]}  Kd7 {[%clk 0:00:03]} 50. h4 {[%clk 0:00:25]}  Kc7 {[%clk 0:00:04]} 51. h5 {[%clk 0:00:25]}  Kb7 {[%clk 0:00:05]} 52. h6 {[%clk 0:00:26]}  Kc7 {[%clk 0:00:06]} 53. h7 {[%clk 0:00:26]}  Kb6 {[%clk 0:00:06]} 54. h8=Q {[%clk 0:00:27]}  a5 {[%clk 0:00:07]} 55. Qd8+ {[%clk 0:00:26]}  Kb5 {[%clk 0:00:06]} 56. Qxa5+ {[%clk 0:00:27]} 1-0


[Site "https://www.chess.com"]